bitfinex/quotes_ETHUSD_20241023
["timestamp","ask_amount","ask_price","bid_price","bid_amount"]
[1729706316955,8.92620365,2495.0,2494.9,0.1220936]
[1729706317754,5.18383579,2495.0,2494.9,0.9547936]
[1729706317960,4.00801,2495.0,2494.9,0.9547936]
[1729706318181,4.00801,2495.0,2494.9,0.1220936]
[1729706320285,7.75037786,2495.0,2494.9,0.1220936]
[1729706324341,10.76037786,2495.0,2494.9,0.1220936]
[1729706324496,11.174035,2495.0,2494.9,0.1220936]
[1729706324699,12.7737945,2495.0,2494.9,0.1220936]
[1729706325444,17.88636236,2495.0,2494.9,3.6e-06]
[1729706325733,4.00978,2493.9,2493.8,0.05]
[1729706326426,7.75214786,2493.9,2493.8,0.05]
[1729706326793,4.00978,2493.9,2493.8,0.05]
[1729706328503,4.00971,2494.0,2493.8,0.05]
[1729706328703,4.00971,2494.0,2493.9,0.7904]
[1729706329913,4.00978,2493.9,2493.8,0.05]
[1729706331048,4.00964,2494.0,2493.8,0.05]
[1729706331351,4.00978,2493.9,2493.8,0.05]
[1729706331727,4.00964,2494.0,2493.8,0.05]
[1729706332241,4.00978,2493.9,2493.8,0.05]
[1729706333555,4.811722,2493.9,2493.8,0.05]
[1729706334529,9.31908986,2493.9,2493.8,0.05]
[1729706335111,12.31908986,2493.9,2493.8,0.05]
[1729706335555,12.73310446,2493.9,2493.8,0.05]
[1729706336530,8.9907366,2493.9,2493.8,0.05]
[1729706344288,12.73310446,2493.9,2493.8,0.05]
[1729706350477,8.9907366,2493.9,2493.8,0.05]
[1729706352324,4.4237946,2493.9,2493.8,0.05]
[1729706352537,4.00964,2494.0,2493.9,0.76]
[1729706352689,4.00946,2494.1,2493.9,0.76]
[1729706353027,4.00937,2494.2,2493.9,0.76]
[1729706353186,4.00962,2494.0,2493.9,0.76]
[1729706353391,4.00978,2493.9,2493.8,0.05]
[1729706354314,7.00978,2493.9,2493.8,0.05]
[1729706354517,7.42328504,2493.9,2493.8,0.05]
[1729706356934,8.05097082,2493.9,2493.8,0.05]
[1729706359101,11.79333868,2493.9,2493.8,0.05]
[1729706359295,13.53038443,2493.9,2493.8,0.05]
[1729706359712,12.90269865,2493.9,2493.8,0.05]
[1729706364236,9.16033079,2493.9,2493.8,0.05]
[1729706364563,4.42328504,2493.9,2493.8,0.8113]
[1729706364976,4.00978,2493.9,2493.8,0.8113]
[1729706365133,7.75214786,2493.9,2493.8,0.05]
[1729706365328,8.92832465,2493.9,2493.8,0.05]
[1729706365572,5.18595679,2493.9,2493.8,0.05]
[1729706365779,4.00962,2494.0,2493.8,0.05]
[1729706365940,4.00978,2493.9,2493.8,0.05]
[1729706367448,4.00962,2494.0,2493.8,0.05]
[1729706367653,4.00978,2493.9,2493.8,0.05]
[1729706368079,4.00942,2494.2,2493.8,0.8356]
[1729706368244,4.8116,2494.4,2493.8,0.8356]
[1729706368245,4.0097,2494.0,2493.8,0.8356]
[1729706368443,4.00978,2493.9,2493.8,0.8356]
[1729706368678,4.0097,2494.0,2493.8,0.8356]
[1729706368980,4.00978,2493.9,2493.8,0.8356]
[1729706370743,4.00964,2494.0,2493.8,0.8356]
[1729706372393,3.0,2494.5,2493.8,0.8356]
[1729706372394,3.74236786,2494.7,2493.8,0.8356]
[1729706372592,3.74236786,2494.7,2494.1,0.7613]
[1729706372593,4.00925,2494.3,2494.1,0.7613]
[1729706372878,8.0185,2494.3,2494.1,0.7613]
[1729706373049,4.0093,2494.2,2494.1,0.7613]
[1729706373254,4.00906,2494.4,2494.1,0.7613]
[1729706373449,4.00925,2494.3,2494.1,0.7613]
[1729706373787,4.00912,2494.4,2494.1,0.7613]
[1729706374414,4.00881,2494.5,2494.1,0.878067]
[1729706374596,4.00881,2494.5,2494.2,0.7779]
[1729706374768,4.00859,2494.7,2494.3,0.8231]
[1729706374955,4.00856,2494.7,2494.3,0.8231]
[1729706375581,4.00856,2494.7,2494.4,0.7511]
[1729706376481,7.75017786,2495.2,2494.5,0.7511]
[1729706376700,7.74884786,2496.0,2494.5,0.7511]
[1729706376701,0.0691415,2496.1,2494.7,3.75236786]
[1729706376850,4.00664,2495.9,2495.5,0.7511]
[1729706377049,4.0068,2495.8,2495.5,0.7511]
[1729706377488,4.00657,2495.9,2495.5,0.7511]
[1729706377694,4.00626,2496.1,2495.5,0.7511]
[1729706377984,4.00642,2496.0,2495.7,0.7511]
[1729706378205,4.00615,2496.2,2495.7,0.7511]
[1729706378607,4.00615,2496.2,2495.7,4.75798]
[1729706378980,4.00615,2496.2,2495.7,8.76479]
[1729706379298,8.01178,2496.4,2496.0,0.8039]
[1729706379474,4.00562,2496.5,2496.0,4.81023]
[1729706379669,4.00559,2496.6,2496.0,1.68557]
[1729706379876,4.00559,2496.6,2496.0,4.81019]
[1729706380120,4.0045,2497.2,2496.2,0.8219]
[1729706380275,3.74236786,2497.3,2496.4,0.8219]
[1729706380469,4.00506,2496.9,2496.4,0.8219]
[1729706380918,4.00464,2497.1,2496.4,0.8219]
[1729706381206,4.00542,2496.7,2496.4,0.8219]
[1729706381372,4.00508,2496.9,2496.4,0.8219]
[1729706381573,4.00512,2496.8,2496.4,0.8219]
[1729706382111,4.00531,2496.7,2496.4,0.8219]
[1729706382674,4.0056,2496.5,2496.4,0.8219]
[1729706385092,4.0056,2496.5,2496.0,0.7766]
[1729706385312,4.00624,2496.1,2496.0,0.7766]
[1729706387178,4.00589,2496.4,2496.0,0.7766]
[1729706387179,4.00607,2496.3,2496.0,0.7766]
[1729706387373,4.00624,2496.1,2496.0,0.7766]
[1729706388707,0.40056,2496.5,2495.8,0.7947]
[1729706388708,4.0066,2495.9,2495.8,0.7947]
[1729706388923,4.00654,2496.0,2495.8,0.7947]
[1729706389078,4.00657,2495.9,2495.8,0.7947]
[1729706390779,4.00686,2495.8,2495.3,0.8009]
[1729706390987,4.00686,2495.8,2495.3,4.80842]
[1729706391618,4.00697,2495.7,2495.3,0.8009]
[1729706392917,4.00697,2495.7,2495.3,4.80839]
[1729706393116,4.00673,2495.8,2495.3,4.80839]
[1729706393706,4.00669,2495.9,2495.4,4.00726]
[1729706394023,4.00669,2495.9,2495.5,0.7945]
[1729706395996,4.00669,2495.9,2495.5,4.80165]
[1729706397096,4.00635,2496.1,2495.5,8.80876]
[1729706397097,4.00643,2496.0,2495.5,8.80876]
[1729706397526,4.00643,2496.0,2495.5,4.80161]
[1729706398279,4.00641,2496.0,2495.5,4.80161]
[1729706398482,4.00657,2495.9,2495.5,4.80161]
[1729706399315,4.00657,2495.9,2495.6,0.7561]
[1729706401608,4.00674,2495.8,2495.6,0.7561]
[1729706401816,4.00689,2495.7,2495.6,0.7561]
[1729706402133,4.00542,2496.7,2495.9,0.55]
[1729706402338,4.00519,2496.8,2496.3,4.81296]
[1729706402485,4.00512,2496.8,2496.3,4.81296]
[1729706402689,4.0052,2496.8,2496.3,4.81296]
[1729706403093,4.00536,2496.7,2496.3,1.688991]
[1729706403492,4.51706865,2497.0,2496.3,1.688991]
[1729706403804,4.00529,2496.7,2496.3,0.8071]
[1729706404000,4.00576,2496.4,2496.3,0.8071]
[1729706404332,4.00633,2496.1,2495.8,0.8191]
[1729706404538,4.00613,2496.2,2495.8,0.8191]
[1729706404715,4.00625,2496.1,2495.8,0.8191]
[1729706405027,4.00627,2496.1,2495.8,0.8191]
[1729706405410,4.0065,2496.0,2495.8,0.8191]
[1729706405925,4.0065,2496.0,2495.1,0.02]
[1729706405926,4.00701,2495.7,2495.5,0.8286]
[1729706406111,4.00705,2495.6,2495.5,0.8286]
[1729706406703,4.00675,2495.8,2495.5,0.8286]
[1729706407236,4.59629465,2496.0,2495.2,0.7686]
[1729706407237,4.00705,2495.6,2495.2,0.7686]
[1729706407407,4.00754,2495.3,2495.0,0.7686]
[1729706407804,4.00773,2495.2,2495.0,0.7686]
[1729706408335,3.74236786,2495.4,2494.7,4.00848]
[1729706408535,4.00731,2495.5,2494.6,0.84876048]
[1729706408698,4.00738,2495.4,2494.9,4.00807]
[1729706409331,4.00753,2495.3,2494.9,4.00807]
[1729706409537,3.74236786,2495.4,2494.6,4.77716]
[1729706409740,4.00792,2495.1,2494.6,4.77716]
[1729706410037,4.00803,2495.0,2494.6,4.77716]
[1729706410326,4.00821,2494.9,2494.6,0.7686]
[1729706410534,4.00803,2495.0,2494.6,0.7686]
[1729706410693,4.00803,2495.0,2494.6,4.77721]
[1729706410891,4.00762,2495.3,2494.8,8.01646]
[1729706411341,8.0149,2495.4,2494.9,4.00815]
[1729706411494,4.00742,2495.4,2494.9,4.00815]
[1729706411824,4.00742,2495.4,2495.0,0.8073]
[1729706412037,4.00746,2495.4,2495.0,0.8073]
[1729706412332,4.00755,2495.3,2495.0,0.8073]
[1729706412644,4.00785,2495.1,2495.0,0.8073]
[1729706412790,4.00815,2495.0,2494.7,0.8073]
[1729706412996,3.74236786,2495.2,2494.5,0.8073]
[1729706413295,5.62946,2495.3,2494.2,1.65925669]
[1729706413296,4.0089,2494.5,2494.2,0.8073]
[1729706413605,4.00867,2494.6,2494.2,0.8073]
[1729706413934,4.00882,2494.5,2494.2,0.8073]
[1729706414117,4.00898,2494.4,2494.2,0.8073]
[1729706414309,4.00933,2494.2,2493.9,0.7658]
[1729706414629,4.00914,2494.3,2493.9,0.7658]
[1729706414929,4.00892,2494.5,2493.9,5.258066]
[1729706415228,4.00914,2494.3,2493.9,1.248366]
[1729706415443,4.00958,2494.1,2493.8,0.05]
[1729706415597,4.00976,2494.0,2493.8,0.05]
[1729706415803,4.00978,2493.9,2493.8,0.05]
[1729706416203,4.00965,2494.0,2493.8,0.05]
[1729706416408,4.00938,2494.2,2493.8,0.05]
[1729706416630,4.00907,2494.4,2493.8,0.8315]
[1729706416631,8.01818,2494.4,2493.8,0.8315]
[1729706416904,4.00882,2494.5,2494.0,4.00949]
[1729706417104,4.00882,2494.5,2493.9,4.0097]
[1729706417105,4.00875,2494.6,2494.1,4.00945]
[1729706417535,4.00882,2494.5,2494.1,4.00945]
[1729706417909,4.00875,2494.6,2494.2,4.00925]
[1729706418110,8.53176786,2494.8,2494.1,0.400945]
[1729706418111,4.00906,2494.4,2494.1,0.400945]
[1729706418335,4.00937,2494.2,2493.8,0.05]
[1729706419321,4.00915,2494.3,2493.8,4.05993]
[1729706419519,4.00915,2494.3,2493.8,0.05]
[1729706419705,4.00957,2494.1,2493.8,0.05]
[1729706420046,4.00888,2494.5,2493.9,0.8095]
[1729706420212,4.00866,2494.6,2494.1,4.00945]
[1729706420631,4.00866,2494.6,2494.1,8.01883]
[1729706420808,4.0089,2494.5,2494.0,4.00961]
[1729706421008,4.0089,2494.5,2494.1,4.00944]
[1729706421355,4.78101,2494.7,2494.1,4.00944]
[1729706421504,4.00841,2494.8,2494.4,0.8095]
[1729706422206,4.00851,2494.7,2494.4,0.8095]
[1729706423243,4.00821,2494.9,2494.4,4.81847]
[1729706423408,0.7724,2495.0,2494.4,0.8095]
[1729706423609,4.00858,2494.7,2494.4,0.8095]
[1729706424030,8.01721,2494.7,2494.4,0.8095]
[1729706424248,4.00824,2494.9,2494.4,4.81836]
[1729706424550,4.00778,2495.2,2494.7,4.00834]
[1729706424726,4.00762,2495.3,2494.9,0.7854]
[1729706425058,4.00733,2495.5,2495.0,4.0079]
[1729706425346,4.0073,2495.5,2495.0,4.0079]
[1729706425546,4.00713,2495.6,2495.0,4.0079]
[1729706425752,4.00682,2495.8,2495.4,0.7797]
[1729706425911,4.00641,2496.0,2495.5,4.0071]
[1729706426110,4.00625,2496.1,2495.6,4.00692]
[1729706426542,4.00652,2496.0,2495.4,4.78691]
[1729706426721,4.00657,2495.9,2495.4,9.273891]
[1729706428339,4.00657,2495.9,2495.4,9.273871]
[1729706428642,8.01304,2496.0,2495.5,4.00708]
[1729706429016,4.00657,2495.9,2495.5,4.00708]
[1729706429216,4.00657,2495.9,2495.4,0.7797]
[1729706429217,8.01391,2495.7,2495.4,0.7797]
[1729706429463,4.00689,2495.7,2495.4,0.7797]
[1729706429618,8.01391,2495.7,2495.4,0.7797]
[1729706429934,4.00706,2495.6,2495.4,0.7797]
[1729706430135,4.00706,2495.6,2495.1,4.83485]
[1729706430336,4.00706,2495.6,2495.2,4.00768]
[1729706430646,4.00689,2495.7,2495.2,4.00768]
[1729706431159,4.00689,2495.7,2495.1,5.4212728]
[1729706431160,4.00706,2495.6,2495.1,5.4212728]
[1729706431666,4.00706,2495.6,2495.1,0.8271]
[1729706431667,4.00725,2495.5,2495.1,0.8271]
[1729706433168,4.00739,2495.4,2495.1,0.8271]
[1729706433326,8.45093372,2495.6,2495.1,0.8271]
[1729706433522,8.45093372,2495.6,2495.1,4.83488]
[1729706433835,4.00697,2495.7,2495.2,4.00761]
[1729706434752,4.00697,2495.7,2495.3,4.00752]
[1729706435156,4.00697,2495.7,2495.2,4.00761]
[1729706435364,4.00713,2495.6,2495.2,4.00761]
[1729706435666,4.00721,2495.5,2495.1,0.8271]
[1729706435827,4.00721,2495.5,2495.1,4.91508878]
[1729706437128,4.00721,2495.5,2494.9,0.7796]
[1729706437129,4.00776,2495.2,2494.9,0.7796]
[1729706437439,4.00786,2495.1,2494.6,4.78815]
[1729706437637,4.0077,2495.2,2494.6,4.78812]
[1729706437841,4.44376372,2495.3,2494.7,4.00834]
[1729706438041,4.96988009,2495.3,2494.8,4.00825]
[1729706438282,4.0077,2495.2,2494.8,4.00825]
[1729706438779,4.0077,2495.2,2494.6,0.7796]
[1729706439080,4.96988009,2495.3,2494.7,4.00847]
[1729706439236,4.00777,2495.2,2494.7,4.00847]
[1729706439437,4.00789,2495.1,2494.7,4.00847]
[1729706439639,4.00813,2495.0,2494.6,0.7796]
[1729706439847,4.00813,2495.0,2494.4,0.7796]
[1729706439848,4.00833,2494.8,2494.4,0.7796]
[1729706440046,4.00858,2494.7,2494.4,0.7796]
[1729706440248,4.00869,2494.6,2494.4,0.7796]
[1729706440478,4.00869,2494.6,2494.2,0.7796]
[1729706440479,4.00888,2494.5,2494.2,0.7796]
[1729706440851,0.8174,2494.8,2494.2,0.7796]
[1729706441051,4.00877,2494.6,2494.2,0.7796]
[1729706442062,4.00865,2494.7,2494.2,4.78888]
[1729706442284,4.00865,2494.7,2494.3,4.00905]
[1729706442940,4.00865,2494.7,2494.2,8.79809]
[1729706443142,4.00867,2494.6,2494.2,4.78881]
[1729706443744,4.0089,2494.5,2494.2,0.7796]
[1729706443962,4.00906,2494.4,2493.9,7.7916]
[1729706444552,4.0089,2494.5,2493.9,0.7819]
[1729706444553,4.00923,2494.3,2493.9,0.7819]
[1729706444938,0.801732,2494.6,2493.9,0.7819]
[1729706444939,0.801732,2494.6,2494.1,4.0094]
[1729706445279,8.45236372,2494.7,2493.9,5.677735]
[1729706445280,4.44376372,2494.7,2493.9,5.677735]
[1729706445579,4.00901,2494.4,2494.0,4.00961]
[1729706446080,4.00901,2494.4,2494.0,4.08979332]
[1729706446255,4.00901,2494.4,2494.3,0.002]
[1729706446655,4.00884,2494.5,2494.3,0.002]
[1729706447672,4.00865,2494.6,2494.3,0.002]
[1729706448785,4.00889,2494.5,2494.3,0.002]
[1729706449084,4.00898,2494.4,2494.3,0.002]
[1729706449781,4.00878,2494.6,2494.3,0.002]
[1729706449982,4.00898,2494.4,2494.3,0.002]
[1729706450277,8.01785,2494.5,2494.3,0.002]
[1729706450450,4.00891,2494.5,2494.3,0.002]
[1729706450838,4.00863,2494.7,2494.3,0.002]
[1729706451041,8.01724,2494.7,2494.4,0.789]
[1729706451287,7.00794,2495.1,2494.4,0.789]
[1729706451288,8.55741903,2495.1,2494.4,1.269016]
[1729706451449,4.00819,2494.9,2494.5,4.00874]
[1729706452275,4.00798,2495.1,2494.6,4.00859]
[1729706452776,4.00805,2495.0,2494.6,4.00859]
[1729706453348,0.8115,2495.4,2494.9,0.7533]
[1729706453543,4.00769,2495.2,2494.9,0.7533]
[1729706453960,4.00787,2495.1,2494.9,0.7533]
[1729706454492,4.00808,2495.0,2494.6,0.8249]
[1729706454845,4.00808,2495.0,2494.6,4.83354]
[1729706455295,4.00808,2495.0,2494.6,0.8249]
[1729706455577,1.16407356,2495.1,2494.6,0.8249]
[1729706455578,5.17195356,2495.1,2494.6,0.8249]
[1729706455786,4.00788,2495.1,2494.6,0.8249]
[1729706456488,4.00801,2495.0,2494.6,4.83347]
[1729706456647,4.00783,2495.2,2494.6,4.83347]
[1729706456847,4.00786,2495.1,2494.7,4.00848]
[1729706457179,4.00786,2495.1,2494.6,4.83347]
[1729706457180,4.00708,2495.6,2495.0,4.00791]
[1729706457379,4.00712,2495.6,2495.1,4.00775]
[1729706457550,4.00712,2495.6,2495.3,0.752]
[1729706458151,4.00724,2495.5,2495.3,0.752]
[1729706459379,4.00737,2495.4,2495.3,0.752]
[1729706459551,4.00723,2495.5,2495.3,0.752]
[1729706459751,4.00698,2495.7,2495.3,0.752]
[1729706459966,4.00708,2495.6,2495.3,0.752]
[1729706460786,4.00706,2495.6,2495.3,0.752]
[1729706461183,4.00698,2495.7,2495.3,4.7595]
[1729706462268,4.00705,2495.6,2495.3,0.752]
[1729706462795,4.00689,2495.7,2495.3,0.752]
[1729706462998,8.0139,2495.7,2495.3,0.752]
[1729706463184,4.00689,2495.7,2495.3,0.752]
[1729706463500,4.00691,2495.7,2495.3,4.75951]
[1729706463805,4.00691,2495.7,2495.3,0.752]
[1729706465596,4.00714,2495.6,2495.3,0.752]
[1729706465800,4.00728,2495.5,2495.3,0.752]
[1729706466125,4.00728,2495.5,2495.1,0.8082]
[1729706466601,8.85615345,2495.6,2495.1,0.8082]
[1729706466602,4.00759,2495.3,2495.1,0.8082]
[1729706466901,4.00817,2494.9,2494.5,0.8082]
[1729706467113,4.00876,2494.6,2494.3,0.8109]
[1729706467601,4.00898,2494.4,2494.3,0.002]
[1729706467820,8.45723945,2494.5,2494.3,0.002]
[1729706468162,4.44829945,2494.5,2494.3,0.002]
[1729706468366,8.45721945,2494.5,2494.3,0.002]
[1729706469309,12.46616945,2494.5,2494.3,0.002]
[1729706470621,4.00898,2494.4,2494.3,0.002]
[1729706470969,8.45721945,2494.5,2494.3,0.002]
[1729706471166,4.44829945,2494.5,2494.3,0.002]
[1729706471469,8.45711945,2494.5,2494.3,0.002]
[1729706471689,4.00898,2494.4,2494.3,0.002]
[1729706473467,5.25558995,2494.4,2494.3,0.002]
[1729706473694,6.07798995,2494.4,2494.3,0.002]
[1729706474609,9.07798995,2494.4,2494.3,0.002]
[1729706474816,9.24657945,2493.9,2493.8,0.05]
[1729706476113,12.24657945,2493.9,2493.8,0.05]
[1729706476322,13.8722024,2493.9,2493.8,0.05]
[1729706478514,13.8722024,2493.9,2493.8,0.05]
[1729706479592,27.9322024,2493.9,2493.8,0.05]
[1729706480006,23.48390295,2493.9,2493.8,0.05]
[1729706480178,14.06,2493.9,2493.8,0.05]
[1729706480875,18.06978,2493.9,2493.8,0.05]
[1729706483802,21.84658,2493.9,2493.8,0.05]
[1729706485378,7.00978,2493.9,2493.8,0.05]
[1729706485579,4.00978,2493.9,2493.8,0.05]
[1729706490287,8.45794945,2494.0,2493.8,0.05]
[1729706490288,4.00965,2494.0,2493.8,0.05]
[1729706490488,4.00978,2493.9,2493.8,0.05]
[1729706492641,0.8103,2494.4,2493.9,0.8257]
[1729706492642,4.81936,2494.4,2493.9,0.8257]
[1729706492847,4.81936,2494.4,2493.8,0.05]
[1729706492848,4.0088,2494.6,2494.0,0.90589332]
[1729706493005,0.400759,2495.2,2494.3,4.83472]
[1729706493006,4.00801,2495.0,2494.3,4.83472]
[1729706493370,4.0078,2495.2,2494.7,0.7916]
[1729706493851,4.00786,2495.1,2494.7,0.7916]
[1729706494204,4.00802,2495.0,2494.7,0.7916]
[1729706495341,4.0078,2495.2,2494.7,0.7916]
[1729706495342,8.01563,2495.2,2494.7,0.7916]
[1729706495513,4.00794,2495.1,2494.7,0.7916]
[1729706495718,4.00794,2495.1,2494.7,1.672497]
[1729706496432,4.00801,2495.0,2494.7,1.672497]
[1729706496627,4.00801,2495.0,2494.7,0.7916]
[1729706497005,4.00777,2495.2,2494.7,4.80008]
[1729706497408,4.00785,2495.1,2494.7,0.7916]
[1729706498920,4.0073,2495.5,2494.7,0.7916]
[1729706499246,4.00721,2495.5,2494.9,0.8009]
[1729706499407,4.00745,2495.4,2495.0,0.08015193]
[1729706500104,4.00722,2495.5,2495.0,4.08814193]
[1729706500727,0.7782,2495.8,2495.3,0.8183]
[1729706500728,4.00683,2495.8,2495.3,0.8183]
[1729706500930,0.01,2496.8,2495.3,0.8183]
[1729706500931,4.00648,2496.0,2495.5,4.00712]
[1729706501137,4.00646,2496.0,2495.6,0.8183]
[1729706501314,4.00626,2496.1,2495.6,4.82533]
[1729706501818,4.00626,2496.1,2495.6,4.90546063]
[1729706502078,4.00642,2496.0,2495.6,0.89843063]
[1729706502252,4.006,2496.3,2495.6,4.90537063]
[1729706502549,4.00627,2496.1,2495.6,4.90537063]
[1729706502709,8.01265,2496.1,2495.6,0.89843063]
[1729706502910,4.44829945,2496.5,2495.7,0.08013068]
[1729706503144,4.00594,2496.3,2495.7,0.08013068]
[1729706503349,4.00594,2496.3,2495.8,4.55661]
[1729706503662,8.45403945,2496.5,2495.8,1.087491]
[1729706503816,4.00539,2496.7,2496.0,0.55]
[1729706504015,4.00539,2496.7,2496.1,4.08624335]
[1729706504228,4.00507,2496.9,2496.2,0.8012]
[1729706504428,4.44829945,2497.1,2496.2,0.8012]
[1729706504429,8.45295945,2497.1,2496.3,0.08011004]
[1729706504757,0.8224,2497.2,2496.2,0.8012]
[1729706504758,4.00592,2496.3,2496.2,0.8012]
[1729706505059,4.00609,2496.2,2495.9,0.8012]
[1729706505241,4.44829945,2496.5,2495.9,0.8012]
[1729706505242,4.00626,2496.1,2495.9,0.8012]
[1729706505419,4.00641,2496.0,2495.9,0.8012]
[1729706505863,4.00633,2496.1,2495.9,0.8012]
[1729706506071,8.01272,2496.1,2495.9,0.8012]
[1729706506421,4.00641,2496.0,2495.9,0.8012]
[1729706506833,4.00633,2496.1,2495.9,0.8012]
[1729706507432,4.00601,2496.3,2495.9,0.8012]
[1729706507636,4.00577,2496.4,2495.9,0.88133119]
[1729706508039,8.45399945,2496.5,2495.9,4.88787119]
[1729706508253,8.45399945,2496.5,2495.9,4.80767]
[1729706508457,8.0114,2496.5,2496.0,4.08648554]
[1729706508627,4.00545,2496.6,2496.0,4.08639554]
[1729706508833,4.0056,2496.5,2496.0,0.08011554]
[1729706509238,8.45344945,2496.8,2495.9,1.281967]
[1729706509239,4.00588,2496.4,2495.9,1.281967]
[1729706510166,4.00588,2496.4,2495.9,0.8012]
[1729706510652,8.01175,2496.4,2495.9,0.8012]
[1729706511266,4.00595,2496.3,2495.9,0.8012]
[1729706511628,4.00641,2496.0,2495.9,0.8012]
[1729706511932,4.00668,2495.9,2495.5,0.7752]
[1729706512161,8.01335,2495.9,2495.5,0.7752]
[1729706512536,4.00648,2496.0,2495.5,0.7752]
[1729706512758,4.00648,2496.0,2495.5,0.85533348]
[1729706512929,8.01303,2496.0,2495.5,0.85533348]
[1729706513124,4.00664,2495.9,2495.5,0.85533348]
[1729706513640,4.00664,2495.9,2495.5,0.7752]
[1729706514031,4.00681,2495.8,2495.5,0.7752]
[1729706514234,4.00705,2495.6,2495.5,0.7752]
[1729706514460,4.0074,2495.4,2495.2,0.8144]
[1729706514630,4.00753,2495.3,2495.2,0.8144]
[1729706515149,4.00753,2495.3,2494.8,0.89455068]
[1729706515150,7.76806225,2495.3,2494.8,0.89455068]
[1729706515351,4.00776,2495.2,2494.8,1.38486175]
[1729706516250,4.00753,2495.3,2494.8,1.38486175]
[1729706517471,4.0074,2495.4,2494.8,1.38486175]
[1729706517472,4.0077,2495.2,2494.8,1.38486175]
[1729706517844,4.0077,2495.2,2494.9,0.08015535]
[1729706518044,4.00792,2495.1,2494.8,0.8144]
[1729706518455,0.7775,2495.5,2494.8,0.8144]
[1729706518662,4.00755,2495.3,2494.9,0.08015549]
[1729706518848,8.01519,2495.3,2494.9,0.08015549]
[1729706519856,4.00755,2495.3,2494.9,0.08015549]
[1729706520246,8.01523,2495.3,2494.9,0.08015549]
[1729706520469,4.00774,2495.2,2494.9,0.08015549]
[1729706520643,4.00778,2495.2,2494.9,0.08015549]
[1729706520964,8.01519,2495.3,2494.9,0.08015549]
[1729706521280,4.00739,2495.4,2494.9,0.08015549]
[1729706521475,4.00765,2495.3,2494.9,0.08015549]
[1729706521630,0.7775,2495.8,2494.8,0.8144]
[1729706521631,4.52949072,2495.6,2494.8,0.8144]
[1729706521833,4.00804,2495.0,2494.8,0.8144]
[1729706522265,4.00801,2495.0,2494.5,0.7521]
[1729706522466,4.00847,2494.8,2494.5,0.7521]
[1729706522772,4.0085,2494.7,2494.5,0.7521]
[1729706523064,8.01709,2494.7,2494.5,0.7521]
[1729706523277,4.0083,2494.9,2494.5,0.7521]
[1729706523431,4.0085,2494.7,2494.5,0.7521]
[1729706523635,4.00865,2494.6,2494.5,0.7521]
[1729706524038,4.009,2494.4,2494.0,0.7819]
[1729706524233,4.44680722,2494.5,2494.0,0.7819]
[1729706524432,4.00946,2494.1,2493.8,0.05]
[1729706524673,4.00978,2493.9,2493.8,0.05]
[1729706524974,4.00973,2494.0,2493.8,0.05]
[1729706525467,4.0094,2494.2,2493.8,0.13019616]
[1729706525642,4.0094,2494.2,2493.8,0.81529778]
[1729706525841,4.00911,2494.4,2493.8,0.73510162]
[1729706525842,4.00898,2494.4,2493.8,0.73510162]
[1729706526044,4.00975,2494.0,2493.8,0.05]
[1729706526649,4.00944,2494.2,2493.8,0.05]
[1729706526650,4.00948,2494.1,2493.8,0.05]
[1729706527474,4.0097,2494.0,2493.8,0.05]
[1729706527839,8.01909,2494.1,2493.8,0.05]
[1729706528149,4.00971,2494.0,2493.8,0.05]
[1729706528858,4.00978,2493.9,2493.8,0.05]
[1729706530753,4.811729,2493.9,2493.8,0.05]
[1729706531157,9.25853622,2493.9,2493.8,0.05]
[1729706531580,9.25853622,2493.9,2493.8,0.6]
[1729706532141,10.08813622,2493.9,2493.8,0.05]
[1729706532503,4.0112,2493.1,2492.6,0.8179]
[1729706532783,4.0112,2493.1,2492.6,4.82968]
[1729706532784,4.01117,2493.1,2492.6,4.82968]
[1729706532956,4.84047,2493.3,2492.7,0.08022505]
[1729706533155,4.84047,2493.3,2492.7,4.09186505]
[1729706533156,4.01101,2493.2,2492.7,4.09186505]
[1729706533359,4.01109,2493.1,2492.7,0.08022505]
[1729706533677,4.01109,2493.1,2492.7,0.57121297]
[1729706533883,4.01109,2493.1,2492.7,0.4909905]
[1729706534607,4.01109,2493.1,2492.8,0.55]
[1729706534941,4.44680722,2493.4,2492.8,4.64175247]
[1729706534942,4.01083,2493.3,2492.8,4.64175247]
[1729706535142,0.7518,2493.6,2493.0,0.55]
[1729706535143,4.01044,2493.5,2493.0,0.55]
[1729706535480,4.811809,2493.9,2493.2,0.55]
[1729706535481,4.01005,2493.8,2493.2,0.55]
[1729706535765,4.0102,2493.7,2493.4,0.55]
[1729706535978,4.01042,2493.5,2493.2,0.55]
[1729706536185,4.01074,2493.3,2493.2,0.55]
[1729706536368,4.01139,2492.9,2492.8,0.8087]
[1729706536556,8.62663728,2493.3,2492.5,0.8087]
[1729706536557,4.01166,2492.8,2492.5,0.8087]
[1729706537171,11.79277256,2493.0,2492.5,4.82062]
[1729706537372,3.77014256,2493.0,2492.5,0.8087]
[1729706537573,4.01168,2492.8,2492.5,0.8087]
[1729706538596,4.01175,2492.7,2492.5,0.8087]
[1729706538897,4.01175,2492.7,2492.6,0.55]
[1729706539192,4.01156,2492.8,2492.6,0.55]
[1729706539558,4.01156,2492.8,2492.5,0.8087]
[1729706539753,4.94945382,2492.8,2492.4,0.1220936]
[1729706539992,4.01203,2492.5,2492.4,0.1220936]
[1729706540205,4.80703,2492.5,2492.4,0.1220936]